[Event "Titled Tuesday Blitz May 9 Early 2023"]
[White "Ankudinova, Yelena"]
[Black "Sourath Biswas"]
[WhiteFideId "13702114"]
[BlackFideId "35091484"]
[WhiteElo "1937"]
[BlackElo "2171"]
[Result "0-1"]
[Round "03"]
[TimeControl "180+2"]
[Date "2023.05.09"]
[WhiteClock "0:00:00"]
[BlackClock "0:01:58"]

1. Nf3 {[%clk 0:02:53]}  Nf6 {[%clk 0:02:58]} 2. d4 {[%clk 0:02:52]}  g6 {[%clk 0:02:58]} 3. Nbd2 {[%clk 0:02:51]}  d5 {[%clk 0:02:58]} 4. e3 {[%clk 0:02:48]}  Bg7 {[%clk 0:02:58]} 5. b4 {[%clk 0:02:48]}  O-O {[%clk 0:02:58]} 6. Bb2 {[%clk 0:02:47]}  Bf5 {[%clk 0:02:54]} 7. c4 {[%clk 0:02:46]}  c6 {[%clk 0:02:53]} 8. Be2 {[%clk 0:02:44]}  Ne4 {[%clk 0:02:53]} 9. O-O {[%clk 0:02:41]}  a5 {[%clk 0:02:44]} 10. b5 {[%clk 0:02:40]}  cxb5 {[%clk 0:02:43]} 11. cxb5 {[%clk 0:02:40]}  a4 {[%clk 0:02:44]} 12. a3 {[%clk 0:02:36]}  Qa5 {[%clk 0:02:44]} 13. Nxe4 {[%clk 0:02:24]}  Bxe4 {[%clk 0:02:45]} 14. Nd2 {[%clk 0:02:22]}  Bf5 {[%clk 0:02:45]} 15. f3 {[%clk 0:02:04]}  Bh6 {[%clk 0:02:41]} 16. f4 {[%clk 0:01:59]}  Rc8 {[%clk 0:02:41]} 17. Rc1 {[%clk 0:01:51]}  Nd7 {[%clk 0:02:41]} 18. g4 {[%clk 0:01:44]}  Be6 {[%clk 0:02:33]} 19. Bd3 {[%clk 0:01:23]}  Bxg4 {[%clk 0:02:29]} 20. Be2 {[%clk 0:00:52]}  Bxe2 {[%clk 0:02:23]} 21. Qxe2 {[%clk 0:00:52]}  Nb6 {[%clk 0:02:18]} 22. Qd3 {[%clk 0:00:50]}  Nc4 {[%clk 0:02:04]} 23. Nxc4 {[%clk 0:00:46]}  Qxb5 {[%clk 0:02:04]} 24. Ne5 {[%clk 0:00:24]}  Qxb2 {[%clk 0:02:04]} 25. Rb1 {[%clk 0:00:21]}  Qc3 {[%clk 0:02:03]} 26. Rxb7 {[%clk 0:00:19]}  f6 {[%clk 0:02:04]} 27. Qxc3 {[%clk 0:00:14]}  Rxc3 {[%clk 0:02:04]} 28. Ng4 {[%clk 0:00:12]}  Bf8 {[%clk 0:02:04]} 29. Rd7 {[%clk 0:00:07]}  h5 {[%clk 0:01:57]} 30. Nf2 {[%clk 0:00:05]}  Rxa3 {[%clk 0:01:58]} 31. Rxd5 {[%clk 0:00:00]}  Rxe3 {[%clk 0:01:58]} 0-1


[Site "https://www.chess.com"]

[Event "Titled Tuesday Blitz May 9 Early 2023"]
[White "Escanor89"]
[Black "Goldin, Roman"]
[BlackFideId "2803860"]
[WhiteElo "2544"]
[BlackElo "2312"]
[Result "0-1"]
[Round "03"]
[TimeControl "180+2"]
[Date "2023.05.09"]
[WhiteClock "0:00:05"]
[BlackClock "0:01:02"]

1. e4 {[%clk 0:03:00]}  Nc6 {[%clk 0:02:58]} 2. d4 {[%clk 0:02:57]}  e5 {[%clk 0:02:57]} 3. Nf3 {[%clk 0:02:54]}  exd4 {[%clk 0:02:56]} 4. Nxd4 {[%clk 0:02:54]}  g6 {[%clk 0:02:57]} 5. Nc3 {[%clk 0:02:49]}  Bg7 {[%clk 0:02:57]} 6. Be3 {[%clk 0:02:50]}  Nf6 {[%clk 0:02:57]} 7. f3 {[%clk 0:02:38]}  O-O {[%clk 0:02:57]} 8. Bc4 {[%clk 0:02:36]}  Re8 {[%clk 0:02:56]} 9. Nde2 {[%clk 0:02:26]}  Na5 {[%clk 0:02:53]} 10. Bb3 {[%clk 0:02:07]}  Nxb3 {[%clk 0:02:47]} 11. axb3 {[%clk 0:02:06]}  d5 {[%clk 0:02:43]} 12. O-O {[%clk 0:01:52]}  dxe4 {[%clk 0:02:41]} 13. Qxd8 {[%clk 0:01:48]}  Rxd8 {[%clk 0:02:41]} 14. fxe4 {[%clk 0:01:48]}  Ng4 {[%clk 0:02:32]} 15. Bg5 {[%clk 0:01:24]}  Re8 {[%clk 0:02:20]} 16. h3 {[%clk 0:01:18]}  h6 {[%clk 0:01:59]} 17. Bh4 {[%clk 0:01:00]}  Ne3 {[%clk 0:01:56]} 18. Rfc1 {[%clk 0:00:55]}  f5 {[%clk 0:01:36]} 19. Bf2 {[%clk 0:00:54]}  f4 {[%clk 0:01:29]} 20. Nxf4 {[%clk 0:00:51]}  Bxc3 {[%clk 0:01:27]} 21. bxc3 {[%clk 0:00:49]}  Rxe4 {[%clk 0:01:27]} 22. Bxe3 {[%clk 0:00:29]}  Rxe3 {[%clk 0:01:27]} 23. Nd5 {[%clk 0:00:30]}  Re2 {[%clk 0:01:17]} 24. Nxc7 {[%clk 0:00:25]}  Rb8 {[%clk 0:01:18]} 25. Rxa7 {[%clk 0:00:26]}  Bd7 {[%clk 0:01:14]} 26. Ra8 {[%clk 0:00:20]}  Rxa8 {[%clk 0:01:13]} 27. Nxa8 {[%clk 0:00:21]}  Bc6 {[%clk 0:01:13]} 28. g4 {[%clk 0:00:20]}  Rg2+ {[%clk 0:01:13]} 29. Kf1 {[%clk 0:00:20]}  Rh2 {[%clk 0:01:13]} 30. Re1 {[%clk 0:00:19]}  Rxh3 {[%clk 0:01:13]} 31. c4 {[%clk 0:00:19]}  Rg3 {[%clk 0:01:11]} 32. Nc7 {[%clk 0:00:16]}  Rxg4 {[%clk 0:01:10]} 33. b4 {[%clk 0:00:17]}  h5 {[%clk 0:01:09]} 34. b5 {[%clk 0:00:15]}  Be4 {[%clk 0:01:10]} 35. Ne6 {[%clk 0:00:14]}  h4 {[%clk 0:01:09]} 36. Re3 {[%clk 0:00:13]}  h3 {[%clk 0:01:04]} 37. Kf2 {[%clk 0:00:05]}  h2 {[%clk 0:01:02]} 0-1


[Site "https://www.chess.com"]

[Event "Titled Tuesday Blitz May 9 Early 2023"]
[White "Thomas, Anysia"]
[Black "Arat, Ufuk Sezen"]
[WhiteFideId "670472"]
[BlackFideId "6309089"]
[WhiteElo "2091"]
[BlackElo "2289"]
[Result "0-1"]
[Round "03"]
[TimeControl "180+2"]
[Date "2023.05.09"]
[WhiteClock "0:00:00"]
[BlackClock "0:00:04"]

1. d4 {[%clk 0:03:00]}  Nf6 {[%clk 0:03:00]} 2. c4 {[%clk 0:02:54]}  g6 {[%clk 0:03:00]} 3. Nc3 {[%clk 0:02:54]}  d5 {[%clk 0:03:01]} 4. cxd5 {[%clk 0:02:55]}  Nxd5 {[%clk 0:03:01]} 5. e4 {[%clk 0:02:54]}  Nxc3 {[%clk 0:03:02]} 6. bxc3 {[%clk 0:02:55]}  Bg7 {[%clk 0:03:03]} 7. Be3 {[%clk 0:02:54]}  c5 {[%clk 0:03:04]} 8. Nf3 {[%clk 0:02:54]}  O-O {[%clk 0:03:04]} 9. Be2 {[%clk 0:02:54]}  cxd4 {[%clk 0:03:04]} 10. cxd4 {[%clk 0:02:53]}  Bg4 {[%clk 0:03:04]} 11. O-O {[%clk 0:02:52]}  Nc6 {[%clk 0:03:04]} 12. d5 {[%clk 0:02:53]}  Na5 {[%clk 0:02:58]} 13. Rc1 {[%clk 0:02:27]}  Rc8 {[%clk 0:02:53]} 14. Qa4 {[%clk 0:02:17]}  Rxc1 {[%clk 0:02:30]} 15. Rxc1 {[%clk 0:02:14]}  a6 {[%clk 0:02:30]} 16. Qb4 {[%clk 0:01:53]}  b5 {[%clk 0:02:03]} 17. Bg5 {[%clk 0:01:31]}  f6 {[%clk 0:01:47]} 18. Bf4 {[%clk 0:01:24]}  Bxf3 {[%clk 0:00:55]} 19. Bxf3 {[%clk 0:01:16]}  Nc4 {[%clk 0:00:54]} 20. Be2 {[%clk 0:01:03]}  Ne5 {[%clk 0:00:46]} 21. Bxe5 {[%clk 0:00:26]}  fxe5 {[%clk 0:00:46]} 22. Bg4 {[%clk 0:00:26]}  Qb6 {[%clk 0:00:42]} 23. Rc2 {[%clk 0:00:16]}  Bf6 {[%clk 0:00:20]} 24. Be6+ {[%clk 0:00:12]}  Kg7 {[%clk 0:00:19]} 25. g3 {[%clk 0:00:11]}  a5 {[%clk 0:00:18]} 26. Qc5 {[%clk 0:00:10]}  Qxc5 {[%clk 0:00:16]} 27. Rxc5 {[%clk 0:00:11]}  Rb8 {[%clk 0:00:14]} 28. Bd7 {[%clk 0:00:12]}  b4 {[%clk 0:00:14]} 29. Rxa5 {[%clk 0:00:11]}  b3 {[%clk 0:00:15]} 30. axb3 {[%clk 0:00:11]}  Rxb3 {[%clk 0:00:16]} 31. Ra7 {[%clk 0:00:10]}  Kh6 {[%clk 0:00:14]} 32. Kg2 {[%clk 0:00:10]}  Rb2 {[%clk 0:00:15]} 33. Be6 {[%clk 0:00:09]}  Bg5 {[%clk 0:00:14]} 34. Kf3 {[%clk 0:00:07]}  Rb3+ {[%clk 0:00:13]} 35. Kg2 {[%clk 0:00:07]}  Rb2 {[%clk 0:00:13]} 36. Kf3 {[%clk 0:00:06]}  Bd2 {[%clk 0:00:12]} 37. Rxe7 {[%clk 0:00:05]}  Be1 {[%clk 0:00:12]} 38. Rf7 {[%clk 0:00:04]}  Rxf2+ {[%clk 0:00:11]} 39. Ke3 {[%clk 0:00:05]}  Rxh2 {[%clk 0:00:08]} 40. Rf1 {[%clk 0:00:05]}  Bb4 {[%clk 0:00:08]} 41. Rb1 {[%clk 0:00:04]}  Bc5+ {[%clk 0:00:07]} 42. Kf3 {[%clk 0:00:03]}  Rd2 {[%clk 0:00:05]} 43. Rc1 {[%clk 0:00:02]}  Ba3 {[%clk 0:00:04]} 44. Rh1+ {[%clk 0:00:00]}  Kg7 {[%clk 0:00:04]} 0-1


[Site "https://www.chess.com"]

[Event "Titled Tuesday Blitz May 9 Early 2023"]
[White "Bettalli, Francesco"]
[Black "Wessendorf, Thomas, Dr."]
[WhiteFideId "2816453"]
[BlackFideId "4604270"]
[WhiteElo "2216"]
[BlackElo "2280"]
[Result "1-0"]
[Round "03"]
[TimeControl "180+2"]
[Date "2023.05.09"]
[WhiteClock "0:01:04"]
[BlackClock "0:00:15"]

1. d4 {[%clk 0:03:00]}  Nf6 {[%clk 0:02:59]} 2. Nc3 {[%clk 0:03:01]}  d5 {[%clk 0:02:58]} 3. Bf4 {[%clk 0:02:50]}  c6 {[%clk 0:02:51]} 4. e3 {[%clk 0:02:50]}  Bf5 {[%clk 0:02:49]} 5. f3 {[%clk 0:02:15]}  h6 {[%clk 0:02:20]} 6. g4 {[%clk 0:02:13]}  Bh7 {[%clk 0:02:19]} 7. h4 {[%clk 0:02:14]}  Qb6 {[%clk 0:02:12]} 8. Na4 {[%clk 0:02:10]}  Qa5+ {[%clk 0:02:07]} 9. c3 {[%clk 0:02:09]}  b5 {[%clk 0:02:03]} 10. Nc5 {[%clk 0:02:06]}  b4 {[%clk 0:01:45]} 11. Qd2 {[%clk 0:02:00]}  bxc3 {[%clk 0:01:40]} 12. bxc3 {[%clk 0:02:01]}  e6 {[%clk 0:01:39]} 13. Nb3 {[%clk 0:01:57]}  Qb6 {[%clk 0:01:36]} 14. g5 {[%clk 0:01:51]}  Nh5 {[%clk 0:01:30]} 15. Be5 {[%clk 0:01:50]}  f6 {[%clk 0:01:22]} 16. Bf4 {[%clk 0:01:32]}  Nxf4 {[%clk 0:01:20]} 17. exf4 {[%clk 0:01:33]}  Bf5 {[%clk 0:01:19]} 18. gxf6 {[%clk 0:01:29]}  gxf6 {[%clk 0:01:18]} 19. Bh3 {[%clk 0:01:30]}  Bxh3 {[%clk 0:01:15]} 20. Nxh3 {[%clk 0:01:31]}  Bd6 {[%clk 0:01:15]} 21. Kf2 {[%clk 0:01:29]}  Nd7 {[%clk 0:01:10]} 22. Rae1 {[%clk 0:01:30]}  Nf8 {[%clk 0:01:07]} 23. f5 {[%clk 0:01:29]}  e5 {[%clk 0:01:05]} 24. Nf4 {[%clk 0:01:29]}  O-O-O {[%clk 0:01:01]} 25. Nd3 {[%clk 0:01:29]}  exd4 {[%clk 0:00:58]} 26. cxd4 {[%clk 0:01:30]}  Nd7 {[%clk 0:00:55]} 27. Re6 {[%clk 0:01:29]}  Nb8 {[%clk 0:00:45]} 28. Rc1 {[%clk 0:01:25]}  Kb7 {[%clk 0:00:39]} 29. Ndc5+ {[%clk 0:01:22]}  Ka8 {[%clk 0:00:39]} 30. Rxf6 {[%clk 0:01:13]}  Rhg8 {[%clk 0:00:38]} 31. Rf7 {[%clk 0:01:13]}  Bg3+ {[%clk 0:00:36]} 32. Kf1 {[%clk 0:01:13]}  Rde8 {[%clk 0:00:34]} 33. Ne6 {[%clk 0:01:08]}  Qa6+ {[%clk 0:00:28]} 34. Qe2 {[%clk 0:01:07]}  Bh2 {[%clk 0:00:24]} 35. Nc7+ {[%clk 0:01:05]}  Kb7 {[%clk 0:00:15]} 36. Nxa6+ {[%clk 0:01:04]} 1-0


[Site "https://www.chess.com"]

[Event "Titled Tuesday Blitz May 9 Early 2023"]
[White "Sliwicki, Damian"]
[Black "Rodriguez Santiago, Jaime"]
[WhiteFideId "1127128"]
[BlackFideId "3100898"]
[WhiteElo "2030"]
[BlackElo "2025"]
[Result "0-1"]
[Round "03"]
[TimeControl "180+2"]
[Date "2023.05.09"]
[WhiteClock "0:00:00"]
[BlackClock "0:00:48"]

1. d4 {[%clk 0:02:59]}  Nf6 {[%clk 0:02:59]} 2. Bf4 {[%clk 0:02:53]}  d5 {[%clk 0:02:59]} 3. Nc3 {[%clk 0:02:47]}  a6 {[%clk 0:02:57]} 4. f3 {[%clk 0:02:45]}  c5 {[%clk 0:02:54]} 5. e3 {[%clk 0:02:29]}  Nc6 {[%clk 0:02:52]} 6. Qd2 {[%clk 0:02:23]}  Bf5 {[%clk 0:02:47]} 7. dxc5 {[%clk 0:02:22]}  e6 {[%clk 0:02:43]} 8. O-O-O {[%clk 0:02:20]}  Bxc5 {[%clk 0:02:38]} 9. g4 {[%clk 0:02:18]}  Bg6 {[%clk 0:02:36]} 10. h4 {[%clk 0:02:18]}  h5 {[%clk 0:02:35]} 11. g5 {[%clk 0:02:17]}  Nd7 {[%clk 0:02:31]} 12. Nh3 {[%clk 0:02:11]}  Nb4 {[%clk 0:02:30]} 13. e4 {[%clk 0:02:04]}  dxe4 {[%clk 0:02:13]} 14. fxe4 {[%clk 0:01:36]}  Qe7 {[%clk 0:02:02]} 15. a3 {[%clk 0:01:26]}  Nc6 {[%clk 0:02:01]} 16. Bg2 {[%clk 0:01:18]}  Nde5 {[%clk 0:01:52]} 17. Na4 {[%clk 0:01:09]}  Bxa3 {[%clk 0:01:43]} 18. Nb6 {[%clk 0:01:09]}  Bxb2+ {[%clk 0:01:40]} 19. Kxb2 {[%clk 0:01:06]}  Qc5 {[%clk 0:01:34]} 20. Nxa8 {[%clk 0:00:56]}  Nc4+ {[%clk 0:01:33]} 21. Kb3 {[%clk 0:00:16]}  Nxd2+ {[%clk 0:01:32]} 22. Rxd2 {[%clk 0:00:16]}  Qb4+ {[%clk 0:01:29]} 23. Ka2 {[%clk 0:00:17]}  O-O {[%clk 0:01:28]} 24. Nc7 {[%clk 0:00:14]}  Qa5+ {[%clk 0:01:29]} 25. Kb1 {[%clk 0:00:13]}  e5 {[%clk 0:01:29]} 26. Nd5 {[%clk 0:00:11]}  exf4 {[%clk 0:01:28]} 27. Nhxf4 {[%clk 0:00:12]}  Nb4 {[%clk 0:01:26]} 28. Nxb4 {[%clk 0:00:11]}  Qxb4+ {[%clk 0:01:26]} 29. Kc1 {[%clk 0:00:12]}  Bxe4 {[%clk 0:01:24]} 30. Bxe4 {[%clk 0:00:11]}  Qxe4 {[%clk 0:01:24]} 31. Rf1 {[%clk 0:00:12]}  Rc8 {[%clk 0:01:20]} 32. Nxh5 {[%clk 0:00:10]}  Qxh4 {[%clk 0:01:19]} 33. Nf4 {[%clk 0:00:10]}  Qxg5 {[%clk 0:01:18]} 34. Rg2 {[%clk 0:00:10]}  Qh6 {[%clk 0:01:01]} 35. Rfg1 {[%clk 0:00:10]}  g6 {[%clk 0:01:00]} 36. Kb1 {[%clk 0:00:10]}  Rc6 {[%clk 0:00:59]} 37. Nd5 {[%clk 0:00:10]}  Kf8 {[%clk 0:00:56]} 38. Re2 {[%clk 0:00:09]}  Qh5 {[%clk 0:00:53]} 39. Re8+ {[%clk 0:00:07]}  Kg7 {[%clk 0:00:51]} 40. Rd1 {[%clk 0:00:00]}  Rd6 {[%clk 0:00:48]} 0-1


[Site "https://www.chess.com"]

[Event "Titled Tuesday Blitz May 9 Early 2023"]
[White "Benmesbah, Natacha"]
[Black "Devaev, Alexander"]
[WhiteFideId "642002"]
[BlackFideId "4169395"]
[WhiteElo "2263"]
[BlackElo "2172"]
[Result "1/2-1/2"]
[Round "03"]
[TimeControl "180+2"]
[Date "2023.05.09"]
[WhiteClock "0:00:06"]
[BlackClock "0:00:07"]

1. e4 {[%clk 0:03:00]}  c6 {[%clk 0:02:43]} 2. Nc3 {[%clk 0:02:58]}  d5 {[%clk 0:02:44]} 3. Nf3 {[%clk 0:02:57]}  Nf6 {[%clk 0:02:42]} 4. e5 {[%clk 0:02:22]}  Ne4 {[%clk 0:02:41]} 5. Ne2 {[%clk 0:01:38]}  e6 {[%clk 0:02:38]} 6. d3 {[%clk 0:01:32]}  Nc5 {[%clk 0:02:37]} 7. d4 {[%clk 0:01:32]}  Ncd7 {[%clk 0:02:37]} 8. Ng3 {[%clk 0:01:13]}  b6 {[%clk 0:02:38]} 9. Bd3 {[%clk 0:01:12]}  Ba6 {[%clk 0:02:38]} 10. O-O {[%clk 0:01:12]}  c5 {[%clk 0:02:34]} 11. c3 {[%clk 0:01:08]}  Bxd3 {[%clk 0:02:30]} 12. Qxd3 {[%clk 0:01:08]}  Nc6 {[%clk 0:02:30]} 13. h4 {[%clk 0:01:04]}  Be7 {[%clk 0:02:29]} 14. Ng5 {[%clk 0:01:02]}  Nf8 {[%clk 0:02:00]} 15. Qf3 {[%clk 0:00:55]}  Bxg5 {[%clk 0:01:52]} 16. Bxg5 {[%clk 0:00:55]}  Qd7 {[%clk 0:01:53]} 17. Rfd1 {[%clk 0:00:52]}  cxd4 {[%clk 0:01:46]} 18. Nh5 {[%clk 0:00:48]}  Rg8 {[%clk 0:01:38]} 19. Bf6 {[%clk 0:00:41]}  Ng6 {[%clk 0:01:24]} 20. cxd4 {[%clk 0:00:35]}  Kf8 {[%clk 0:01:19]} 21. Bg5 {[%clk 0:00:34]}  h6 {[%clk 0:01:06]} 22. Be3 {[%clk 0:00:25]}  Nxh4 {[%clk 0:01:01]} 23. Qg4 {[%clk 0:00:24]}  Nf5 {[%clk 0:01:02]} 24. Rac1 {[%clk 0:00:21]}  Rc8 {[%clk 0:00:54]} 25. Qh3 {[%clk 0:00:17]}  Nce7 {[%clk 0:00:51]} 26. g4 {[%clk 0:00:17]}  Nxe3 {[%clk 0:00:50]} 27. fxe3 {[%clk 0:00:17]}  Ng6 {[%clk 0:00:44]} 28. Nf4 {[%clk 0:00:16]}  Nxf4 {[%clk 0:00:42]} 29. exf4 {[%clk 0:00:17]}  Rh8 {[%clk 0:00:29]} 30. Qa3+ {[%clk 0:00:16]}  Kg8 {[%clk 0:00:26]} 31. Qd6 {[%clk 0:00:15]}  Qe8 {[%clk 0:00:18]} 32. Rc7 {[%clk 0:00:13]}  Kh7 {[%clk 0:00:13]} 33. Rdc1 {[%clk 0:00:12]}  Rxc7 {[%clk 0:00:13]} 34. Rxc7 {[%clk 0:00:13]}  Qa4 {[%clk 0:00:12]} 35. b3 {[%clk 0:00:08]}  Qxa2 {[%clk 0:00:11]} 36. Rxf7 {[%clk 0:00:08]}  Qb1+ {[%clk 0:00:12]} 37. Kf2 {[%clk 0:00:07]}  Qc2+ {[%clk 0:00:11]} 38. Kg3 {[%clk 0:00:07]}  Qc3+ {[%clk 0:00:08]} 39. Kh4 {[%clk 0:00:07]}  Qe1+ {[%clk 0:00:08]} 40. Kh3 {[%clk 0:00:06]}  Qh1+ {[%clk 0:00:08]} 41. Kg3 {[%clk 0:00:07]}  Qd1 {[%clk 0:00:08]} 42. Qxe6 {[%clk 0:00:06]}  Qe1+ {[%clk 0:00:07]} 43. Kf3 {[%clk 0:00:06]}  Qf1+ {[%clk 0:00:06]} 44. Ke3 {[%clk 0:00:06]}  Qg1+ {[%clk 0:00:06]} 45. Ke2 {[%clk 0:00:06]}  Qg2+ {[%clk 0:00:06]} 46. Kd3 {[%clk 0:00:06]}  Qf3+ {[%clk 0:00:06]} 47. Kd2 {[%clk 0:00:07]}  Qf2+ {[%clk 0:00:06]} 48. Kd3 {[%clk 0:00:07]}  Qf3+ {[%clk 0:00:07]} 49. Kd2 {[%clk 0:00:07]}  Qf2+ {[%clk 0:00:06]} 50. Kd3 {[%clk 0:00:06]}  Qf3+ {[%clk 0:00:07]} 1/2-1/2


[Site "https://www.chess.com"]

[Event "Titled Tuesday Blitz May 9 Early 2023"]
[White "Clawitter, Craig"]
[Black "Abdilkhair, Abilmansur"]
[WhiteFideId "2023105"]
[BlackFideId "13716417"]
[WhiteElo "2244"]
[BlackElo "2215"]
[Result "0-1"]
[Round "03"]
[TimeControl "180+2"]
[Date "2023.05.09"]
[WhiteClock "0:00:02"]
[BlackClock "0:01:38"]

1. e4 {[%clk 0:02:56]}  e5 {[%clk 0:02:59]} 2. Nc3 {[%clk 0:02:55]}  Nc6 {[%clk 0:03:00]} 3. f4 {[%clk 0:02:54]}  Bb4 {[%clk 0:02:57]} 4. Nd5 {[%clk 0:02:50]}  Ba5 {[%clk 0:02:53]} 5. Nf3 {[%clk 0:02:48]}  d6 {[%clk 0:02:53]} 6. Bb5 {[%clk 0:02:41]}  Ne7 {[%clk 0:02:50]} 7. O-O {[%clk 0:02:30]}  O-O {[%clk 0:02:49]} 8. d4 {[%clk 0:02:25]}  exd4 {[%clk 0:02:35]} 9. Kh1 {[%clk 0:02:14]}  Bg4 {[%clk 0:02:27]} 10. Nxe7+ {[%clk 0:02:05]}  Qxe7 {[%clk 0:02:25]} 11. Bxc6 {[%clk 0:02:05]}  bxc6 {[%clk 0:02:26]} 12. Qxd4 {[%clk 0:02:05]}  Bb6 {[%clk 0:02:25]} 13. Qc4 {[%clk 0:01:48]}  Rae8 {[%clk 0:02:19]} 14. Qxc6 {[%clk 0:01:35]}  Qxe4 {[%clk 0:02:15]} 15. Qxe4 {[%clk 0:01:33]}  Rxe4 {[%clk 0:02:16]} 16. Bd2 {[%clk 0:01:26]}  Re2 {[%clk 0:02:14]} 17. Rad1 {[%clk 0:01:03]}  Rfe8 {[%clk 0:02:12]} 18. h3 {[%clk 0:01:03]}  Bf5 {[%clk 0:02:11]} 19. c3 {[%clk 0:00:40]}  Bc2 {[%clk 0:02:05]} 20. Rde1 {[%clk 0:00:37]}  f6 {[%clk 0:02:01]} 21. Rxe2 {[%clk 0:00:34]}  Rxe2 {[%clk 0:02:02]} 22. Re1 {[%clk 0:00:35]}  Rf2 {[%clk 0:01:56]} 23. Be3 {[%clk 0:00:25]}  Bxe3 {[%clk 0:01:55]} 24. Rxe3 {[%clk 0:00:26]}  Bb1 {[%clk 0:01:53]} 25. Re7 {[%clk 0:00:23]}  Rxb2 {[%clk 0:01:52]} 26. Rxc7 {[%clk 0:00:22]}  Rxa2 {[%clk 0:01:52]} 27. Nd4 {[%clk 0:00:21]}  Be4 {[%clk 0:01:51]} 28. Nf3 {[%clk 0:00:05]}  Bxf3 {[%clk 0:01:50]} 29. gxf3 {[%clk 0:00:06]}  a5 {[%clk 0:01:48]} 30. Rd7 {[%clk 0:00:04]}  Rd2 {[%clk 0:01:46]} 31. Ra7 {[%clk 0:00:04]}  Rd3 {[%clk 0:01:41]} 32. Kg2 {[%clk 0:00:04]}  Rxc3 {[%clk 0:01:38]} 33. Rxa5 {[%clk 0:00:04]}  Kf7 {[%clk 0:01:39]} 34. f5 {[%clk 0:00:04]}  Rc7 {[%clk 0:01:37]} 35. Rd5 {[%clk 0:00:04]}  Ke7 {[%clk 0:01:37]} 36. Kg3 {[%clk 0:00:04]}  Rc5 {[%clk 0:01:38]} 37. Rd4 {[%clk 0:00:04]}  Rxf5 {[%clk 0:01:38]} 38. Re4+ {[%clk 0:00:02]}  Re5 {[%clk 0:01:38]} 0-1


[Site "https://www.chess.com"]

[Event "Titled Tuesday Blitz May 9 Early 2023"]
[White "Rios Escobar, Adan"]
[Black "Antonio, Jorge Carlos"]
[WhiteFideId "3403645"]
[BlackFideId "113190"]
[WhiteElo "2426"]
[BlackElo "2247"]
[Result "0-1"]
[Round "03"]
[TimeControl "180+2"]
[Date "2023.05.09"]
[WhiteClock "0:00:00"]
[BlackClock "0:00:41"]

1. d4 {[%clk 0:03:00]}  d5 {[%clk 0:02:58]} 2. g3 {[%clk 0:03:01]}  c6 {[%clk 0:02:55]} 3. Nf3 {[%clk 0:03:00]}  Bg4 {[%clk 0:02:54]} 4. Ne5 {[%clk 0:02:57]}  Bf5 {[%clk 0:02:54]} 5. c4 {[%clk 0:02:57]}  Nd7 {[%clk 0:02:47]} 6. cxd5 {[%clk 0:02:44]}  cxd5 {[%clk 0:02:44]} 7. Qa4 {[%clk 0:02:39]}  Nf6 {[%clk 0:02:40]} 8. Nc3 {[%clk 0:02:38]}  a6 {[%clk 0:02:33]} 9. Qb3 {[%clk 0:02:06]}  e6 {[%clk 0:02:29]} 10. Qxb7 {[%clk 0:01:46]}  Nxe5 {[%clk 0:02:29]} 11. dxe5 {[%clk 0:01:44]}  Nd7 {[%clk 0:02:27]} 12. Bg2 {[%clk 0:01:22]}  Be7 {[%clk 0:02:24]} 13. O-O {[%clk 0:01:21]}  O-O {[%clk 0:02:20]} 14. e4 {[%clk 0:01:21]}  Nc5 {[%clk 0:02:16]} 15. Qxa8 {[%clk 0:00:40]}  Qxa8 {[%clk 0:02:12]} 16. exf5 {[%clk 0:00:40]}  d4 {[%clk 0:02:04]} 17. Bxa8 {[%clk 0:00:37]}  Rxa8 {[%clk 0:02:03]} 18. fxe6 {[%clk 0:00:24]}  dxc3 {[%clk 0:01:59]} 19. exf7+ {[%clk 0:00:24]}  Kxf7 {[%clk 0:01:55]} 20. bxc3 {[%clk 0:00:25]}  Nd3 {[%clk 0:01:51]} 21. f4 {[%clk 0:00:18]}  Bc5+ {[%clk 0:01:48]} 22. Kg2 {[%clk 0:00:19]}  Rd8 {[%clk 0:01:41]} 23. Bd2 {[%clk 0:00:15]}  Ke6 {[%clk 0:01:37]} 24. Be1 {[%clk 0:00:13]}  h5 {[%clk 0:01:34]} 25. h3 {[%clk 0:00:13]}  g6 {[%clk 0:01:33]} 26. Rf3 {[%clk 0:00:13]}  Rd7 {[%clk 0:01:26]} 27. Rb1 {[%clk 0:00:11]}  Nxe1+ {[%clk 0:01:21]} 28. Rxe1 {[%clk 0:00:10]}  Rd2+ {[%clk 0:01:19]} 29. Kh1 {[%clk 0:00:09]}  Kf5 {[%clk 0:01:11]} 30. e6 {[%clk 0:00:08]}  Be7 {[%clk 0:01:08]} 31. Re5+ {[%clk 0:00:06]}  Kf6 {[%clk 0:01:04]} 32. Re1 {[%clk 0:00:07]}  Rxa2 {[%clk 0:01:01]} 33. g4 {[%clk 0:00:07]}  hxg4 {[%clk 0:00:55]} 34. hxg4 {[%clk 0:00:08]}  g5 {[%clk 0:00:52]} 35. f5 {[%clk 0:00:04]}  Ra4 {[%clk 0:00:49]} 36. Rg3 {[%clk 0:00:01]}  a5 {[%clk 0:00:46]} 37. Kg2 {[%clk 0:00:00]}  Bd6 {[%clk 0:00:41]} 0-1


[Site "https://www.chess.com"]

[Event "Titled Tuesday Blitz May 9 Early 2023"]
[White "Vivas Zamora, Fabian Ernesto"]
[Black "ZeGood_ZeBad_ZeUgly"]
[WhiteFideId "3902480"]
[WhiteElo "2244"]
[BlackElo "2212"]
[Result "1-0"]
[Round "03"]
[TimeControl "180+2"]
[Date "2023.05.09"]
[WhiteClock "0:00:18"]
[BlackClock "0:00:00"]

1. e4 {[%clk 0:02:58]}  c5 {[%clk 0:02:59]} 2. Nc3 {[%clk 0:02:58]}  Nc6 {[%clk 0:02:56]} 3. Bb5 {[%clk 0:02:56]}  Nd4 {[%clk 0:02:56]} 4. Nf3 {[%clk 0:02:56]}  a6 {[%clk 0:02:55]} 5. Bd3 {[%clk 0:02:54]}  Nc6 {[%clk 0:02:55]} 6. O-O {[%clk 0:02:54]}  e6 {[%clk 0:02:55]} 7. Nd5 {[%clk 0:02:51]}  Nge7 {[%clk 0:02:28]} 8. Re1 {[%clk 0:02:42]}  d6 {[%clk 0:02:22]} 9. Ne3 {[%clk 0:02:32]}  g6 {[%clk 0:02:18]} 10. c3 {[%clk 0:02:27]}  Bg7 {[%clk 0:02:18]} 11. Bc2 {[%clk 0:02:28]}  O-O {[%clk 0:02:08]} 12. d4 {[%clk 0:02:29]}  b6 {[%clk 0:02:05]} 13. h4 {[%clk 0:02:19]}  h6 {[%clk 0:01:45]} 14. Ng4 {[%clk 0:01:46]}  h5 {[%clk 0:01:26]} 15. Ne3 {[%clk 0:01:42]}  cxd4 {[%clk 0:01:12]} 16. Nxd4 {[%clk 0:01:41]}  Nxd4 {[%clk 0:01:10]} 17. cxd4 {[%clk 0:01:42]}  Bb7 {[%clk 0:01:03]} 18. b3 {[%clk 0:01:31]}  Rc8 {[%clk 0:00:59]} 19. Ba3 {[%clk 0:01:17]}  Nc6 {[%clk 0:00:54]} 20. e5 {[%clk 0:00:55]}  dxe5 {[%clk 0:00:44]} 21. Bxf8 {[%clk 0:00:54]}  Qxf8 {[%clk 0:00:45]} 22. d5 {[%clk 0:00:40]}  exd5 {[%clk 0:00:28]} 23. Nxd5 {[%clk 0:00:39]}  Nd4 {[%clk 0:00:24]} 24. Be4 {[%clk 0:00:36]}  Bxd5 {[%clk 0:00:15]} 25. Bxd5 {[%clk 0:00:36]}  Qd8 {[%clk 0:00:16]} 26. Bc4 {[%clk 0:00:33]}  b5 {[%clk 0:00:16]} 27. Bf1 {[%clk 0:00:31]}  Qxh4 {[%clk 0:00:16]} 28. Rc1 {[%clk 0:00:29]}  Rxc1 {[%clk 0:00:09]} 29. Qxc1 {[%clk 0:00:29]}  Qe7 {[%clk 0:00:09]} 30. Qc8+ {[%clk 0:00:29]}  Kh7 {[%clk 0:00:08]} 31. Qxa6 {[%clk 0:00:30]}  h4 {[%clk 0:00:08]} 32. Re3 {[%clk 0:00:21]}  Qf6 {[%clk 0:00:07]} 33. Qxf6 {[%clk 0:00:20]}  Bxf6 {[%clk 0:00:07]} 34. a4 {[%clk 0:00:20]}  b4 {[%clk 0:00:02]} 35. a5 {[%clk 0:00:20]}  Bd8 {[%clk 0:00:03]} 36. Rxe5 {[%clk 0:00:19]}  Nc6 {[%clk 0:00:02]} 37. Rd5 {[%clk 0:00:17]}  Bxa5 {[%clk 0:00:01]} 38. Rc5 {[%clk 0:00:17]}  Nd4 {[%clk 0:00:01]} 39. Rxa5 {[%clk 0:00:17]}  Nxb3 {[%clk 0:00:02]} 40. Rb5 {[%clk 0:00:17]}  Nd4 {[%clk 0:00:02]} 41. Rxb4 {[%clk 0:00:18]}  Nc2 {[%clk 0:00:00]} 42. Rxh4+ {[%clk 0:00:18]} 1-0


[Site "https://www.chess.com"]